Cogmind - Beta 13 @@@ ROGUE MODE // 2024.03.10 @ 00:28:53 Player: Minty Result: Destroyed by S-27 Virus with Autogun Performance ------------- Evolutions (6) 3000 Regions Visited (14) 2800 Robots Destroyed (193) 965 Value Destroyed (6937) 6937 Prototype IDs (45) 900 Alien Tech Used (0) 0 Bonus (3027) 3027 TOTAL SCORE: 17629 Bonus ------- Triggered High Security 500 High Alert Combat Kills 1670 Follower Combat Kills 378 Aligned with FarCom 300 Met Data Miner 300 Friendly Fire -121 Cogmind --------- Core Integrity 0/1150 Matter 63/300 Energy 38/100 System Corruption 21% Temperature Cool (0) Movement Core (150) Ox2 Location -4/Upper Caves Parts ------- > --- POWER (1) -------- (None) > --- PROPULSION (5) --- (None) > --- UTILITY (8) ------ Improved Coolant Injector Long-range Sensor Array Advanced Signal Interpreter Advanced Target Analyzer Improved Utility Shielding > --- WEAPON (5) ------- Autogun > --- INVENTORY (5) ---- Neutron Cannon Hardcell Cannon Compact Tesla Bomb Launcher Improved Plasma Cutter Peak State ------------ > --- POWER ------------ Reinforced Fission Core > --- PROPULSION ------- Gravmag Array Gyrokinetic Inverter Nuclear Pulse Array > --- UTILITY ---------- Improved Coolant Injector Medium Storage Unit Targeting Computer Targeting Computer Improved Core Shielding Advanced System Shield System Guard Advanced Field Recycling Unit > --- WEAPON ----------- Heavy Phase Cannon Heavy Phase Cannon Heavy Phase Cannon Heavy Phase Cannon Advanced Assault Cannon > --- INVENTORY -------- Improved Coolant Injector Improved Kinecellerator Neutron Cannon Hypervelocity Coil Gun Mass Driver Smartbomb Launcher Improved Plasma Cutter Spear [Rating: 98] Favorites ----------- Power Improved Deuterium Engine Engine Improved Deuterium Engine Power Core Reinforced Fission Core Propulsion Wheel Leg Aluminum Leg Wheel Wheel Hover Unit Gyrokinetic Inverter Flight Unit Impulse Thruster Utility Large Storage Unit Device Terrain Scanner Storage Large Storage Unit Processor Improved Melee Analysis Suite Hackware Advanced System Shield Protection Improved Light Armor Plating Weapon Mini Assault Cannon Energy Gun Cooled Pulse Rifle Energy Cannon Heavy Phase Cannon Ballistic Gun Coil Gun Ballistic Cannon Mini Assault Cannon Launcher Rocket Launcher Special Weapon Mining Laser Impact Weapon Power Maul Slashing Weapon Greatsword Piercing Weapon Spear Build | -11 -10 -10 -10 -9 -8 -7 -6 -6 -6 -6 -5 -5 -4 -4 ------- Run | Yrd Mat Min Exi Min Mat Fac Fac Low Low Dat Pro Fac Fac Upp Slots Evolved 12 | . . . . . 4 2 2 . . . . 2 2 . Power . | . . . . . . . . . . . . . . . Propulsion 3 | . . . . . . 1 . . . . . . 2 . Utility 6 | . . . . . 2 1 2 . . . . 1 . . Weapon 3 | . . . . . 2 . . . . . . 1 . . Parts Attached 239 | . 15 7 1 2 16 68 8 12 5 . 6 60 34 5 Power 18 | . 1 1 1 . 1 5 . . . . . 5 3 1 Engine 5 | . 1 1 1 . . 1 . . . . . 1 . . Core 13 | . . . . . 1 4 . . . . . 4 3 1 Reactor . | . . . . . . . . . . . . . . . Propulsion 37 | . 3 . . . 2 12 1 1 1 . . 7 10 . Treads . | . . . . . . . . . . . . . . . Leg 11 | . 1 . . . 2 6 . 1 . . . . 1 . Wheel 9 | . 2 . . . . 6 1 . . . . . . . Hover 5 | . . . . . . . . . . . . 5 . . Flight 12 | . . . . . . . . . 1 . . 2 9 . Utility 77 | . 5 1 . 2 6 22 7 4 1 . . 18 11 . Device 35 | . 2 1 . 2 3 8 3 4 1 . . 5 6 . Storage 4 | . 2 . . . . . . . . . . 2 . . Processor 18 | . . . . . 1 1 4 . . . . 9 3 . Hackware 4 | . 1 . . . . 1 . . . . . 1 1 . Protection 16 | . . . . . 2 12 . . . . . 1 1 . Artifact . | . . . . . . . . . . . . . . . Weapon 107 | . 6 5 . . 7 29 . 7 3 . 6 30 10 4 Energy Gun 29 | . 2 2 . . 3 10 . 1 . . 1 8 . 2 Energy Cannon 16 | . 2 . . . . 3 . 1 . . 3 7 . . Ballistic Gun 10 | . . . . . . . . 1 . . . 5 3 1 Ballistic Cannon 10 | . . . . . . 6 . . 1 . . 2 1 . Launcher 21 | . 2 2 . . . 5 . . 1 . 1 4 5 1 Special Weapon 1 | . . . . . . . . . . . . . 1 . Impact Weapon 7 | . . . . . . 2 . 2 1 . 1 1 . . Slashing Weapon 10 | . . 1 . . 4 3 . 2 . . . . . . Piercing Weapon 3 | . . . . . . . . . . . . 3 . . Special Melee Weapon . | . . . . . . . . . . . . . . . Unidentified Prototypes 11 | . . . . 1 1 4 . . . . 1 3 1 . Corrupted Parts 2 | . . . . . . . . . . . . 1 . 1 System Corruption 7 | . . . . . . . . . . . . 1 . 6 Parts Lost 82 | . . 2 . . . 22 1 16 . . 2 10 23 6 Power 6 | . . 1 . . . 2 . 1 . . . 1 . 1 Propulsion 25 | . . . . . . 8 . 3 . . 1 4 7 2 Utility 24 | . . . . . . 7 1 7 . . 1 . 7 1 Weapon 27 | . . 1 . . . 5 . 5 . . . 5 9 2 Highest Loss Streak 13 | . . 2 . . . 5 1 13 . . 1 5 12 6 To Critical Strikes 2 | . . . . . . 1 . 1 . . . . . . Average Slot Usage (%) 80 | . 99 97 100 100 78 88 79 85 31 20 13 79 61 49 Engine 4 | . 14 12 14 14 5 1 6 5 . . . . . . Core 2 | . . . . . 3 4 . . . . . 3 4 . Leg 5 | . 21 . . . 16 6 . 5 . . . . 1 . Wheel 7 | . 6 28 28 28 1 10 7 8 . . . . . . Hover 1 | . . . . . . . . . . . . 8 4 . Device 9 | . 8 10 14 14 14 10 5 15 10 . . 3 10 10 Storage 6 | . 14 14 14 14 9 7 6 5 . . . 2 2 . Processor 10 | . . . . . 3 5 15 18 6 6 5 28 8 10 Hackware 1 | . 4 3 . . . . . . . . . 4 3 5 Protection 4 | . . . . . 4 12 9 . . . . 1 3 5 Energy Gun 3 | . 11 9 . . 1 6 . . . . . 2 . 7 Energy Cannon 4 | . 6 . . . . 2 6 5 . . . 10 8 . Ballistic Gun 1 | . 6 . . . . . . . 5 . . 2 1 . Ballistic Cannon 4 | . . . . . . 7 13 11 . . . 1 1 . Launcher 2 | . 3 11 14 14 . 2 . . . . . . 2 . Impact Weapon 2 | . . . . . . 4 6 1 6 6 5 . . . Slashing Weapon 3 | . . 6 14 14 16 2 . 4 . . . . . . Naked Turns . | . . . . . . . . . . . . . . . Heaviest Build 96 | 11 31 33 32 32 41 64 52 56 11 3 11 96 96 17 Greatest Support 50 | 20 26 26 26 26 40 50 26 26 8 8 3 31 34 20 Greatest Overweight (x) 7 | . 1 1 1 1 1 6 3 5 3 . 3 6 7 3 Average Overweight (x) 1 | . . . 1 1 . 1 2 2 1 . . 1 . . Largest Inventory Capacity 15 | . 15 15 15 15 15 15 15 15 5 5 5 10 10 5 Average Capacity 12 | . 13 15 15 15 15 15 15 13 5 5 5 7 7 5 Most Carried 15 | . 15 15 15 15 15 15 15 15 5 4 5 10 10 5 Average Carried 11 | . 12 14 14 14 14 14 14 13 4 4 4 7 6 4 Final Capacity 15 | 8 15 15 15 15 15 15 15 5 5 5 5 10 5 5 Final Carried 15 | 6 15 15 15 15 15 15 15 5 4 4 5 10 5 4 Class Distribution -------------------- 43% | Mutant 13% | Scavenger-Tank 10% | Skirmisher 8% | Gunner 7% | Assassin 3% | Scavenger-Gunner 3% | Tank Dominant Class ---------------- Mutant | -10/Materials Mutant | -10/Mines Mutant | -10/Exiles Assassin | -9/Mines Mutant | -8/Materials Scavenger-Tank | -7/Factory Scavenger-Tank | -6/Factory Skirmisher | -6/Lower Caves Mutant | -6/Lower Caves Mutant | -6/Data Miner Mutant | -5/Proximity Caves Gunner | -5/Factory Mutant | -4/Factory Mutant | -4/Upper Caves Resources | -11 -10 -10 -10 -9 -8 -7 -6 -6 -6 -6 -5 -5 -4 -4 ----------- Run | Yrd Mat Min Exi Min Mat Fac Fac Low Low Dat Pro Fac Fac Upp Matter Collected 4185 | 200 157 192 89 18 173 1364 406 113 47 . 76 892 458 . Remotely . | . . . . . . . . . . . . . . . Salvage Created 6324 | . 410 154 . 18 71 2800 344 145 43 . 112 1143 1027 57 Parts 259 | . 28 16 . 2 2 92 13 2 4 . 7 64 25 4 Haulers Intercepted 3 | . . . . . . 3 . . . . . . . . Recyclers Shooed 3 | . . . . . . 3 . . . . . . . . Parts Field Recycled 7 | . . . . . . . . . . . . 2 5 . Retrieved Matter 42 | . . . . . . . . . . . . 12 30 . Parts Self-Destructed 12 | . . . . . . . . 5 2 . 4 . . 1 Prevented 2 | . . . . . . . . . . . . . . 2 Kills | -11 -10 -10 -10 -9 -8 -7 -6 -6 -6 -6 -5 -5 -4 -4 ------- Run | Yrd Mat Min Exi Min Mat Fac Fac Low Low Dat Pro Fac Fac Upp Combat Hostiles Destroyed 135 | . 12 8 . . 1 64 5 3 4 . 4 19 13 2 Melee 8 | . . . . . . 4 . . . . . 4 . . Guns 20 | . 3 3 . . . 10 . . . . . 3 1 . Cannons 27 | . 2 . . . . 14 1 2 . . 1 5 2 . AOE 62 | . 7 5 . . 1 30 . . 4 . 3 3 7 2 Classes Destroyed 20 | . 6 1 . . . 10 . 2 . . 1 . . . Worker 28 | . 3 2 . 1 1 12 1 . . . . 5 3 . Builder 7 | . . . . . . 5 . . . . . 2 . . Tunneler 8 | . . 2 . . . 1 2 . . . . 1 2 . Hauler 3 | . . . . . . 3 . . . . . . . . Recycler 7 | . 1 . . . . 3 . . . . . 2 1 . Mechanic 1 | . . . . . . 1 . . . . . . . . Operator 3 | . 1 . . . . . 1 . . . . . 1 . Watcher 7 | . 2 . . . . 3 1 . . . . 1 . . Swarmer 37 | . 6 6 . . . 9 1 . 4 . 4 5 . 2 Grunt 50 | . 6 2 . . 1 29 3 1 . . . 4 4 . Brawler 5 | . . . . . . 5 . . . . . . . . Duelist 5 | . . . . . . 5 . . . . . . . . Protector 3 | . . . . . . 3 . . . . . . . . Sentry 5 | . . . . . . 4 . . . . . 1 . . Demolisher 1 | . . . . . . 1 . . . . . . . . Hunter 14 | . . . . . . 4 . . . . . 6 4 . Programmer 14 | . . . . . . 5 1 . . . . 3 5 . Behemoth 1 | . . . . . . . . 1 . . . . . . Decomposer 4 | . . . . . . . . 4 . . . . . . Samaritan 1 | . . . . . . . . . . . 1 . . . Mutant 1 | . . . . . . . . 1 . . . . . . Best Kill Streak 16 | . 4 3 . 1 1 16 3 1 4 . 4 7 5 2 Combat Bots Only 15 | . 4 3 . . 1 15 3 1 4 . 4 5 3 2 Max Kills in Single Turn 5 | . 3 3 . 1 1 5 1 1 4 . 3 2 2 2 Gunslinging . | . . . . . . . . . . . . . . . Exploded 5 | . 3 3 . . 1 5 . . 4 . 3 1 2 2 Melee 1 | . . . . . . 1 . . . . . 1 . . Uniques/NPCs Destroyed . | . . . . . . . . . . . . . . . Combat | -11 -10 -10 -10 -9 -8 -7 -6 -6 -6 -6 -5 -5 -4 -4 -------- Run | Yrd Mat Min Exi Min Mat Fac Fac Low Low Dat Pro Fac Fac Upp Hostile Shots Fired 965 | . 61 26 . . 20 320 22 68 14 . 23 131 218 62 Missed 297 | . 17 11 . . 4 95 4 18 10 . 8 39 70 21 Damage Taken 13302 | . 460 228 . . 274 4092 298 1250 30 . 384 1978 3618 690 Core 3264 | . 141 15 . . 29 474 85 442 15 . 233 675 885 270 Absorbed by Shields . | . . . . . . . . . . . . . . . Redirected to Shielding 200 | . . . . . . 27 9 . . . . 6 126 32 Regen/Repaired (Parts) 374 | . . . . . 99 46 . . . . . . 229 . Core Remaining (%) 50 | 100 . . . 37 94 32 . . . . 8 32 . . Volleys Fired 270 | . 39 15 . . 1 96 6 18 4 . 7 36 42 6 Largest 5 | . 2 2 . . 3 4 3 3 1 . 1 5 5 2 Hottest 408 | . 100 113 . . 161 191 171 186 45 . 90 408 408 188 Shots Fired 565 | . 78 22 . . 3 234 18 42 4 . 7 72 75 10 Gun 234 | . 52 16 . . 2 98 . 8 3 . 1 30 15 9 Cannon 257 | . 16 . . . . 111 18 34 . . 5 37 36 . Launcher 74 | . 10 6 . . 1 25 . . 1 . 1 5 24 1 Special . | . . . . . . . . . . . . . . . Kinetic 185 | . 18 . . . . 83 12 29 3 . . 22 17 1 Thermal 240 | . 23 11 . . 2 108 6 13 . . 5 30 34 8 Explosive 62 | . 10 6 . . 1 25 . . 1 . 1 5 13 . Electromagnetic 78 | . 27 5 . . . 18 . . . . 1 15 11 1 Robot Hit Streak 15 | . 10 8 . . 2 12 6 15 4 . 2 6 10 11 Robot Miss Streak 7 | . 5 6 . . 2 5 4 2 2 . 7 2 5 4 Penetration Max 1 | . . . . . . . . . . . . . 1 . Secondary Targets . | . . . . . . . . . . . . . . . Autonomous 11 | . . . . . . 11 . . . . . . . . Shots Hit Robots 436 | . 39 14 . 1 8 189 16 41 1 . 3 69 50 5 Core Hits 354 | . 27 9 . . 4 206 1 12 7 . 5 43 37 3 Critical Kills 2 | . . . . . . . . 1 . . . 1 . . Critical Parts Destroyed 13 | . . . . . . 7 . 3 . . . 1 2 . Critical Strikes 26 | . . . . . 1 14 . 6 . . . 3 2 . Burn 3 | . . . . . . 2 . 1 . . . . . . Meltdown 1 | . . . . . . . . . . . . 1 . . Destroy 3 | . . . . . . . . . . . . 1 2 . Blast 5 | . . . . . . 4 . 1 . . . . . . Smash 13 | . . . . . . 8 . 4 . . . 1 . . Sever 1 | . . . . . 1 . . . . . . . . . Melee Attacks 134 | . . 2 . 1 11 57 9 20 3 . 3 28 . . Impact 75 | . . . . . . 47 9 7 3 . 3 6 . . Slashing 37 | . . 2 . 1 11 10 . 13 . . . . . . Piercing 22 | . . . . . . . . . . . . 22 . . Sneak Attacks 31 | . . 2 . 1 1 13 3 4 . . 1 6 . . Combat Hostiles . | . . . . . . . . . . . . . . . Follow-up Attacks 2 | . . . . . 2 . . . . . . . . . Damage Inflicted 22851 | . 1044 667 . 66 413 9706 832 1636 240 . 359 3821 3799 268 Guns 2679 | . 337 103 . . 11 1340 . 142 . . . 461 139 146 Cannons 4700 | . 140 . . . . 1884 226 739 . . 36 825 850 . Explosions 9905 | . 567 437 . . 49 4085 . 86 240 . 205 1308 2810 118 Melee 5551 | . . 127 . 66 353 2397 606 669 . . 118 1215 . . Ramming 16 | . . . . . . . . . . . . 12 . 4 Kinetic 2760 | . 146 . . . . 1254 139 656 . . . 264 301 . Thermal 4984 | . 174 87 . . 11 2004 87 311 . . 36 1168 960 146 Explosive 8332 | . 567 437 . . 49 3958 . . 240 . 205 905 1971 . Electromagnetic 1208 | . 157 16 . . . 93 . . . . . 257 567 118 Impact 3687 | . . . . . . 2223 606 410 . . 118 330 . . Slashing 979 | . . 127 . 66 353 174 . 259 . . . . . . Piercing 885 | . . . . . . . . . . . . 885 . . Highest Corruption 21 | . . . . . . 19 . . . . 2 5 9 21 Average Corruption 9 | . . . . . . 13 . . . . 2 2 7 9 Corruption Purged . | . . . . . . . . . . . . . . . Corruption Blocked . | . . . . . . . . . . . . . . . Effects 87 | . . . . . . 59 . . . . . 10 14 4 Message Errors 20 | . . . . . . 11 . . . . . 4 4 1 Matter Fused 24 | . . . . . . 17 . . . . . 2 5 . Heat Flow Errors 11 | . . . . . . 5 . . . . . 1 3 2 Energy Discharges 11 | . . . . . . 10 . . . . . . 1 . Data Loss (minor) 11 | . . . . . . 7 . . . . . 3 1 . Data Loss (major) 2 | . . . . . . 2 . . . . . . . . Misfires 3 | . . . . . . 2 . . . . . . . 1 Alerts 2 | . . . . . . 2 . . . . . . . . Weapon Failures 3 | . . . . . . 3 . . . . . . . . Overload Shots . | . . . . . . . . . . . . . . . Overflow Damage 2921 | . 57 151 . 26 76 1110 283 391 17 . 113 422 248 27 Projectiles 129 | . . . . . . 30 42 . . . . 53 4 . Explosions 715 | . 57 94 . . . 120 . 79 17 . . 77 244 27 Melee 2077 | . . 57 . 26 76 960 241 312 . . 113 292 . . Knockbacks 38 | . . . . . . 27 2 3 . . . 3 3 . Impact 15 | . . . . . . 13 1 . . . . 1 . . Kinetic 21 | . . . . . . 13 1 3 . . . 1 3 . Secondary 2 | . . . . . . 1 . . . . . 1 . . Self-Inflicted Damage 1051 | . 55 88 . . . 288 . . . . 31 47 506 36 Shots 29 | . 3 3 . . . 11 . . . . 1 2 8 1 Rammed 3 | . . . . . . . . . . . . 2 . 1 Targets Rammed 3 | . . . . . . . . . . . . 2 . 1 Kicked . | . . . . . . . . . . . . . . . Crushed . | . . . . . . . . . . . . . . . Highest Temperature 534 | . 207 104 . . 51 366 261 534 . . 48 259 510 193 Average Temperature 105 | . 53 38 . . 24 107 90 199 . . 19 110 130 64 Received Heat Transfer 3146 | . 123 42 . . 162 1023 75 513 . . 24 231 953 . Effects 22 | . . . . . . 7 . 7 . . . . 8 . Shutdowns 1 | . . . . . . . . . . . . . 1 . Energy Bleed 1 | . . . . . . 1 . . . . . . . . Interference 11 | . . . . . . 5 . 3 . . . . 3 . Matter Decay 1 | . . . . . . . . 1 . . . . . . Short Circuit 1 | . . . . . . . . . . . . . 1 . Damage (minor) 1 | . . . . . . 1 . . . . . . . . Damage (major) 6 | . . . . . . . . 3 . . . . 3 . Siege Activations . | . . . . . . . . . . . . . . . Robots Corrupted 3 | . . . . . . . . . . . . . 3 . Combat Hostiles 2 | . . . . . . . . . . . . . 2 . Parts Fried 39 | . . . . . . 15 5 1 . . 1 2 15 . Impact Corruptions 62 | . . . . . . 36 12 7 . . 2 5 . . Robots Melted 2 | . . . . . . . . 1 . . . 1 . . Combat Hostiles 2 | . . . . . . . . 1 . . . 1 . . Parts Melted 19 | . . . . . . 12 1 . . . . 6 . . Heat Transferred 6938 | . 371 200 . . 15 3498 111 654 . . . 1040 864 185 Parts Sabotaged . | . . . . . . . . . . . . . . . Parts Stolen 4 | . . . . . . . . 2 2 . . . . . Parts Stripped . | . . . . . . . . . . . . . . . Power Chain Reactions 1 | . . . . . . 1 . . . . . . . . Alert | -11 -10 -10 -10 -9 -8 -7 -6 -6 -6 -6 -5 -5 -4 -4 ------- Run | Yrd Mat Min Exi Min Mat Fac Fac Low Low Dat Pro Fac Fac Upp Peak Influence 1671 | . 350 391 . 5 210 1671 1254 . . . . 519 1479 . Initial 1100 | . . 136 . . 1 18 1100 . . . . 50 254 . Average 443 | . 81 308 . . 117 612 1147 . . . . 302 622 . Maximum Alert Level 5 | . 1 1 . . 1 5 4 . . . . 2 4 . Low Security (%) 32 | . 87 15 . 100 65 19 . . . . . 22 . . Level 1 27 | . 12 84 . . 34 11 . . . . . 61 25 . Level 2 21 | . . . . . . 39 . . . . . 16 44 . Level 3 6 | . . . . . . 12 8 . . . . . 12 . Level 4 11 | . . . . . . 12 91 . . . . . 17 . Level 5 1 | . . . . . . 3 . . . . . . . . High Security . | . . . . . . . . . . . . . . . Max Security . | . . . . . . . . . . . . . . . Squads Dispatched 50 | . 2 1 . . 2 21 4 . . . . 10 10 . Investigation 18 | . 1 1 . . 1 4 1 . . . . 5 5 . Extermination 10 | . . . . . . 6 1 . . . . 2 1 . Reinforcement 13 | . 1 . . . 1 6 . . . . . 3 2 . Assault 9 | . . . . . . 5 2 . . . . . 2 . Garrison . | . . . . . . . . . . . . . . . Intercept . | . . . . . . . . . . . . . . . Searches Triggered . | . . . . . . . . . . . . . . . Data Miner Redirects 5 | . . . . . . . . . . . . 2 3 . Construction Impeded 2 | . . . . . . 1 . . . . . . 1 . Haulers Reinforced 2 | . . . . . . 2 . . . . . . . . Active Scanning Responses . | . . . . . . . . . . . . . . . Cargo Convoy Interrupts . | . . . . . . . . . . . . . . . Stealth | -11 -10 -10 -10 -9 -8 -7 -6 -6 -6 -6 -5 -5 -4 -4 --------- Run | Yrd Mat Min Exi Min Mat Fac Fac Low Low Dat Pro Fac Fac Upp Distress Signals 5 | . 2 . . . . 3 . . . . . . . . Communications Jammed . | . . . . . . . . . . . . . . . Distress Signals . | . . . . . . . . . . . . . . . Times Spotted 220 | . 22 5 . . 11 90 12 7 8 . 5 22 33 5 Peak Tracking Total 7 | . 6 3 . . 3 7 5 2 4 . 4 6 6 4 Tactical Retreats 21 | . . . . . . 6 2 1 . . 1 3 7 1 Traps | -11 -10 -10 -10 -9 -8 -7 -6 -6 -6 -6 -5 -5 -4 -4 ------- Run | Yrd Mat Min Exi Min Mat Fac Fac Low Low Dat Pro Fac Fac Upp Traps Triggered 10 | . 1 . . . 1 2 . . . . . 3 2 1 Indirectly 2 | . . . . . . . . . . . . . 2 . Trap Hack Attempts . | . . . . . . . . . . . . . . . Triggered . | . . . . . . . . . . . . . . . Disarmed . | . . . . . . . . . . . . . . . Reprogrammed 6 | . . . . . . . . . . . . 6 . . Reused 4 | . . . . . . . . . . . . 4 . . Traps Extracted . | . . . . . . . . . . . . . . . Installed 5 | . . . . 5 . . . . . . . . . . Triggered 4 | . . . . . . . . . . . . 4 . . Machines | -11 -10 -10 -10 -9 -8 -7 -6 -6 -6 -6 -5 -5 -4 -4 ---------- Run | Yrd Mat Min Exi Min Mat Fac Fac Low Low Dat Pro Fac Fac Upp Machines Disabled 75 | . 4 1 . . 2 21 1 2 . . . 6 38 . Max in Single Turn 10 | . 1 1 . . 1 4 1 1 . . . 3 10 . Garrison Access 1 | . . . . . . . . . . . . 1 . . Machines Repaired . | . . . . . . . . . . . . . . . Machines Dismantled . | . . . . . . . . . . . . . . . Machines Sabotaged . | . . . . . . . . . . . . . . . Overloaded Fab Kills . | . . . . . . . . . . . . . . . Hacking | -11 -10 -10 -10 -9 -8 -7 -6 -6 -6 -6 -5 -5 -4 -4 --------- Run | Yrd Mat Min Exi Min Mat Fac Fac Low Low Dat Pro Fac Fac Upp Machines Accessed 45 | . 6 1 2 . 3 7 1 . 1 4 1 9 9 1 Terminals 13 | . 5 . . . 2 . . . . . 1 3 2 . Fabricators 8 | . . . . . . 3 . . . . . 2 3 . Repair Stations 7 | . . . . . 1 3 . . . . . . 3 . Recycling Units 6 | . 1 . . . . 1 1 . . . . 2 1 . Scanalyzers 1 | . . . . . . . . . . . . 1 . . Garrison Access 1 | . . . . . . . . . . . . 1 . . Total Hacks 147 | . 20 1 2 . 10 20 4 . 1 32 1 33 22 1 Successful 93 | . 6 1 2 . 8 8 2 . 1 32 1 18 13 1 Failed 54 | . 14 . . . 2 12 2 . . . . 15 9 . Catastrophic 18 | . 4 . . . 1 5 . . . . . 5 3 . Database Lockouts . | . . . . . . . . . . . . . . . Manual 41 | . 19 . 1 . 3 2 . . . . . 10 6 . Terminals 41 | . 18 . . . 6 . . . . . 1 12 4 . Fabricators 25 | . . . . . . 9 . . . . . 7 9 . Repair Stations 18 | . . . . . 4 7 . . . . . . 7 . Recycling Units 16 | . 2 . . . . 4 4 . . . . 4 2 . Scanalyzers 9 | . . . . . . . . . . . . 9 . . Garrison Access 1 | . . . . . . . . . . . . 1 . . Terminal Hacks 47 | . 2 1 2 . 3 . . . 1 32 1 3 1 1 Record 13 | . . . 1 . . . . . . 11 1 . . . Part Schematic 12 | . . . . . . . . . . 12 . . . . Robot Schematic 6 | . . . . . . . . . . 6 . . . . Prototype ID Bank 4 | . . . . . 1 . . . . 3 . . . . Open Door 3 | . . 1 . . . . . . 1 . . . . 1 Alert Level 1 | . . . . . 1 . . . . . . . . . Locate Traps 2 | . . . . . . . . . . . . 2 . . Reprogram Traps 1 | . . . . . . . . . . . . 1 . . Dispatch Records 1 | . . . . . . . . . . . . . 1 . Maintenance Status 1 | . 1 . . . . . . . . . . . . . Patrol Status 1 | . . . . . 1 . . . . . . . . . Recall Reinforcements 1 | . 1 . . . . . . . . . . . . . Derelict Proto ID Bank 1 | . . . 1 . . . . . . . . . . . Fabricator Hacks 10 | . . . . . . 3 . . . . . 3 4 . Network Status 2 | . . . . . . 1 . . . . . 1 . . Load Schematic 3 | . . . . . . . . . . . . 1 2 . Build 5 | . . . . . . 2 . . . . . 1 2 . Repair Station Hacks 11 | . . . . . 4 3 . . . . . . 4 . Scan Component 6 | . . . . . 2 2 . . . . . . 2 . Repair 4 | . . . . . 2 1 . . . . . . 1 . Refit 1 | . . . . . . . . . . . . . 1 . Recycling Unit Hacks 10 | . 2 . . . . 2 2 . . . . 2 2 . Process 1 | . . . . . . . 1 . . . . . . . Report Inventory 5 | . 1 . . . . 1 1 . . . . 1 1 . Retrieve Components 4 | . 1 . . . . 1 . . . . . 1 1 . Scanalyzer 6 | . . . . . . . . . . . . 6 . . Insert Component 3 | . . . . . . . . . . . . 3 . . Analyze 3 | . . . . . . . . . . . . 3 . . Garrison Access Hacks 1 | . . . . . . . . . . . . 1 . . Seal Access 1 | . . . . . . . . . . . . 1 . . Unauthorized Hacks 8 | . 2 . . . 1 . . . . . . 3 2 . Terminals 7 | . 2 . . . 1 . . . . . . 2 2 . Track 1 | . . . . . . . . . . . . . 1 . Botnet 6 | . 2 . . . 1 . . . . . . 2 1 . Fabricators . | . . . . . . . . . . . . . . . Repair Stations . | . . . . . . . . . . . . . . . Recycling Units . | . . . . . . . . . . . . . . . Scanalyzers 1 | . . . . . . . . . . . . 1 . . Extract 1 | . . . . . . . . . . . . 1 . . Garrison Access . | . . . . . . . . . . . . . . . Data Cores Recovered 1 | . . . . . . . . . . . . . 1 . Used 1 | . . . . . . . . . . . . . 1 . Hacking Detections 29 | . 5 . . . 3 6 1 . . . . 6 8 . Full Trace Events 18 | . 4 . . . . 4 1 . . . . 4 5 . Feedback Events 1 | . . . . . . 1 . . . . . . . . Corruption 1 | . . . . . . 1 . . . . . . . . Feedback Blocked 1 | . . . . . . . . . . . . . 1 . Robot Schematics Acquired 6 | . . . . . . . . . . 6 . . . . Robots Built 9 | . . . . . . 4 . . . . . 3 2 . Authchips . | . . . . . . . . . . . . . . . Time 429 | . . . . . . 134 . . . . . 67 228 . Total Robot Build Rating 38 | . . . . . . 16 . . . . . 12 10 . Part Schematics Acquired 22 | . . . . . . . . . . 12 . 10 . . Parts Built 1 | . . . . . . 1 . . . . . . . . Authchips . | . . . . . . . . . . . . . . . Time 95 | . . . . . . 95 . . . . . . . . Total Part Build Rating 5 | . . . . . . 5 . . . . . . . . Parts Repaired 4 | . . . . . 2 1 . . . . . . 1 . Time 142 | . . . . . 70 44 . . . . . . 28 . Parts Recycled . | . . . . . . . . . . . . . . . Recycled Matter . | . . . . . . . . . . . . . . . Retrieved Matter . | . . . . . . . . . . . . . . . Retrieved Components 6 | . 1 . . . . 3 . . . . . 1 1 . Parts Scanalyzed 3 | . . . . . . . . . . . . 3 . . Part Schematics Acquired 3 | . . . . . . . . . . . . 3 . . Parts Damaged . | . . . . . . . . . . . . . . . Bothacking | -11 -10 -10 -10 -9 -8 -7 -6 -6 -6 -6 -5 -5 -4 -4 ------------ Run | Yrd Mat Min Exi Min Mat Fac Fac Low Low Dat Pro Fac Fac Upp Used RIF Installer . | . . . . . . . . . . . . . . . Robots Hacked . | . . . . . . . . . . . . . . . Non-combat . | . . . . . . . . . . . . . . . Combat . | . . . . . . . . . . . . . . . Robot Hacks Applied . | . . . . . . . . . . . . . . . Relay Couplers Released . | . . . . . . . . . . . . . . . Fabnet Peak Effective % . | . . . . . . . . . . . . . . . Robots Rewired . | . . . . . . . . . . . . . . . Allies Hacked . | . . . . . . . . . . . . . . . Hacks Repelled . | . . . . . . . . . . . . . . . Allies | -11 -10 -10 -10 -9 -8 -7 -6 -6 -6 -6 -5 -5 -4 -4 -------- Run | Yrd Mat Min Exi Min Mat Fac Fac Low Low Dat Pro Fac Fac Upp Total Allies 13 | . . 3 . . . 4 . . . . 1 3 2 . Largest Group 4 | . . 3 3 3 3 4 . . . . 1 3 2 . Highest-Rated Group 96 | . . 40 40 40 40 48 . . . . 96 60 82 . Highest-Rated Ally 96 | . . 16 16 16 16 16 . . . . 96 20 41 . Total Orders . | . . . . . . . . . . . . . . . Ally Attacks 100 | . . . . . 56 38 . . . . 2 1 3 . Total Damage 1337 | . . . . . 643 393 . . . . 100 43 158 . Kills 11 | . . . . . 7 3 . . . . . 1 . . Allies Corrupted . | . . . . . . . . . . . . . . . Allies Melted . | . . . . . . . . . . . . . . . Intel | -11 -10 -10 -10 -9 -8 -7 -6 -6 -6 -6 -5 -5 -4 -4 ------- Run | Yrd Mat Min Exi Min Mat Fac Fac Low Low Dat Pro Fac Fac Upp Robot Analysis Total . | . . . . . . . . . . . . . . . Derelict Logs Recovered 7 | . . . . 2 . . . 3 1 . 1 . . . Drone Launches . | . . . . . . . . . . . . . . . Drone Recoveries . | . . . . . . . . . . . . . . . Exploration | -11 -10 -10 -10 -9 -8 -7 -6 -6 -6 -6 -5 -5 -4 -4 ------------- Run | Yrd Mat Min Exi Min Mat Fac Fac Low Low Dat Pro Fac Fac Upp Turns Passed 10088 | . 1103 472 304 235 477 2591 486 1392 365 58 384 1364 734 123 Spaces Moved 7304 | 1 653 388 282 210 229 1448 306 851 262 115 649 993 778 139 Core 968 | . . . . . . . . 51 130 96 649 39 2 1 Treads . | . . . . . . . . . . . . . . . Legs 1024 | 1 456 . . . 204 240 . 85 . . . . 38 . Wheels 3331 | . 197 388 282 210 25 1208 306 715 . . . . . . Hover 927 | . . . . . . . . . . . . 845 82 . Flight 1054 | . . . . . . . . . 132 19 . 109 656 138 Fastest Speed 31 | 120 105 90 105 105 105 95 105 105 55 50 50 32 31 37 Average Speed 111 | 120 145 103 105 105 145 132 134 147 126 50 52 102 70 38 Slowest Speed 440 | 120 190 105 105 105 200 330 145 330 200 55 200 310 440 200 Overloaded Moves . | . . . . . . . . . . . . . . . Propulsion Burnouts . | . . . . . . . . . . . . . . . Robots Hopped 4 | . . . . . . . . . 1 . . 1 2 . Cave-ins Triggered 2 | . . . . . . . . . . . 2 . . . Exploration Rate (%) 46 | 1 92 69 66 51 22 37 9 85 40 69 81 24 24 22 Regions Visited 14 Branch Regions 8 Pre-discovered Areas 3 | . . . 1 1 . . . . . 1 . . . . Known Exits Taken 2 | . . . . 1 . . . . . . . . 1 . Unknown Exits Taken 12 | 1 1 1 1 . 1 1 1 1 1 1 1 1 . . Scrap Searched 6 | . . 1 . 1 . . . 2 2 . . . . . Spaces Dug 18 | . . . . . . 6 . 10 2 . . . . . Terrain Destroyed 932 | . 49 62 . . 6 318 3 25 40 . 20 147 259 3 Melee 18 | . . . . . . 6 . 10 2 . . . . . Projectile 36 | . . . . . . 15 3 4 . . 1 6 4 3 AOE 878 | . 49 62 . . 6 297 . 11 38 . 19 141 255 . Terrain Rammed . | . . . . . . . . . . . . . . . Walls Destroyed . | . . . . . . . . . . . . . . . Machines Disabled . | . . . . . . . . . . . . . . . Actions | -11 -10 -10 -10 -9 -8 -7 -6 -6 -6 -6 -5 -5 -4 -4 --------- Run | Yrd Mat Min Exi Min Mat Fac Fac Low Low Dat Pro Fac Fac Upp Total 8513 | . 729 436 290 223 360 1805 347 920 283 114 674 1233 901 198 Wait 280 | . . 9 3 . 71 81 14 9 . . 4 25 18 46 Move 7281 | . 652 387 281 209 228 1447 305 850 259 114 647 990 773 139 Hop 4 | . . . . . . . . . 1 . . 1 2 . Pick Up 85 | . 11 7 2 3 13 14 2 7 3 . 1 13 9 . Fast Attach 130 | . 5 3 . . 11 31 6 5 3 . 3 41 19 3 Attach 61 | . . 1 . . 4 18 1 7 . . 2 16 10 2 Detach 45 | . 2 1 . . 1 12 . 1 . . 2 19 6 1 Swap 49 | . 10 3 1 2 1 20 1 . 2 . 1 3 5 . Drop 128 | . 10 8 3 3 21 29 3 3 8 . 3 20 17 . Fire 270 | . 39 15 . . 1 96 6 18 4 . 7 36 42 6 Melee 132 | . . 2 . 1 9 57 9 20 3 . 3 28 . . Ram 3 | . . . . . . . . . . . . 2 . 1 Kick . | . . . . . . . . . . . . . . . Crush . | . . . . . . . . . . . . . . . Escape Stasis 40 | . . . . . . . . . . . 1 39 . . Rewire . | . . . . . . . . . . . . . . . Trap 5 | . . . . 5 . . . . . . . . . . Miscellaneous . | . . . . . . . . . . . . . . . Route ------- -11/Scrapyard -10/Materials (discovered 4 exits: [*Mat x3] / *Min) -10/Mines -10/Exiles -9/Mines (discovered 2 exits: *Mat x2) -8/Materials -7/Factory -6/Factory -6/Lower Caves -6/Lower Caves -6/Data Miner -5/Proximity Caves -5/Factory -4/Factory -4/Upper Caves History --------- Turn | Location | Event 1 | -11/Scrapyard | Discovered new exit (range 0) 1 | -11/Scrapyard | Entered Materials 103 | -10/Materials | Discovered new exit (range 9) 309 | -10/Materials | Build established: Mutant 968 | -10/Materials | Discovered new exit (range 11) 1066 | -10/Materials | Core integrity fell below 50% 1081 | -10/Materials | Discovered new exit (range 9) 1089 | -10/Materials | Discovered new exit (range 13) 1104 | -10/Materials | Entered Mines 1174 | -10/Mines | Received a Rocket Launcher from a helpful Derelict 1200 | -10/Mines | Met a Derelict shopkeep closing up shop 1291 | -10/Mines | Assisted by bots powering up and referring to "LRC-V3" 1563 | -10/Mines | Deemed a non-threat by the Exiles lab entrance 1564 | -10/Mines | Discovered new exit (range 5) 1576 | -10/Mines | Entered Exiles 1576 | -10/Exiles | Accompanied by 3 allies 1601 | -10/Exiles | Met 8R-AWN 1622 | -10/Exiles | Met EX-HEX 1649 | -10/Exiles | Met EX-BIN 1664 | -10/Exiles | Aligned with FarCom system 1665 | -10/Exiles | Given EX-Vault access code 1693 | -10/Exiles | Opened EX-Vault 1705 | -10/Exiles | Found AWS/Thermal 1713 | -10/Exiles | Found Gui. Plasma Cannon 1738 | -10/Exiles | Warned to stay clear of 0b10 Research branches 1766 | -10/Exiles | Met EX-DEC 1797 | -10/Exiles | Learned location of Zion (-7) 1866 | -10/Exiles | Discovered new exit (range 10) 1880 | -10/Exiles | Stole two prototypes: AWS/Thermal, Gui. Plasma Cannon 1880 | -10/Exiles | Entered Mines 1880 | -9/Mines | Accompanied by 3 allies 1925 | -9/Mines | Identified exit to Materials 1978 | -9/Mines | Found a damaged Exp. Sensor Array with a note attached 1981 | -9/Mines | Found Prototype Device 1997 | -9/Mines | Found a hidden stash of uninstalled traps 2070 | -9/Mines | Identified Exp. Sensor Array 2097 | -9/Mines | Discovered exit to Materials (range 11) 2115 | -9/Mines | Entered Materials 2115 | -8/Materials | Accompanied by 3 allies 2115 | -8/Materials | Evolved 4 slots: Utility x2, Weapon x2 2194 | -8/Materials | Build established: Assassin 2409 | -8/Materials | Discovered new exit (range 16) 2457 | -8/Materials | Repaired Lgt. Armor Plating 2503 | -8/Materials | Repaired Greatsword 2592 | -8/Materials | Entered Factory 2592 | -7/Factory | Accompanied by 1 ally 2592 | -7/Factory | Evolved 2 slots: Propulsion x1, Utility x1 2594 | -7/Factory | FarCom data flow suspended 2632 | -7/Factory | Build established: Mutant 2655 | -7/Factory | Repaired Greatsword 3219 | -7/Factory | Lost 5 parts (1p2n1u1w) 3532 | -7/Factory | Fabricated Lyr. Medium Armor Plating (x1) 3792 | -7/Factory | First assault squad dispatched 4001 | -7/Factory | System corruption reached 10% 4004 | -7/Factory | Core integrity fell below 50% 4042 | -7/Factory | Lost 5 parts (3u2w) 4311 | -7/Factory | Found Prototype Launcher 4311 | -7/Factory | Identified Rocket Array 4425 | -7/Factory | Build established: Scavenger-Tank 4473 | -7/Factory | Discovered new exit (range 5) 4522 | -7/Factory | Fabricated S-27 Virus? 5053 | -7/Factory | Lost 3 allies 5085 | -7/Factory | Destroyed 15 combat bots 5163 | -7/Factory | High security lockdown imminent 5183 | -7/Factory | Entered another Factory area 5183 | -6/Factory | Evolved 2 slots: Utility x2 5533 | -6/Factory | First assault squad dispatched 5622 | -6/Factory | Discovered new exit (range 10) 5669 | -6/Factory | Entered Lower Caves 5669 | -6/Lower Caves | Spotted 0Z-27F(f) 5670 | -6/Lower Caves | Encountered a Master Thief 5671 | -6/Lower Caves | Spotted YK-4M0(f) 5672 | -6/Lower Caves | Encountered a Master Thief 5672 | -6/Lower Caves | Gui. Plasma Cannon stolen by Master Thief 5675 | -6/Lower Caves | AWS/Thermal stolen by Master Thief 5708 | -6/Lower Caves | Learned 4 Factory zone layouts 5800 | -6/Lower Caves | Learned Factory emergency access door positions 5828 | -6/Lower Caves | Build established: Assassin 5855 | -6/Lower Caves | Attacked by a delusional Derelict stockpiling parts 6155 | -6/Lower Caves | Build established: Skirmisher 6262 | -6/Lower Caves | Learned Factory security intel 6476 | -6/Lower Caves | Spotted B-75 Beast 6911 | -6/Lower Caves | Core integrity fell below 50% 6916 | -6/Lower Caves | Destroyed B-75 Beast 6944 | -6/Lower Caves | Lost 13 parts (1p1n6u5w) 7022 | -6/Lower Caves | Discovered new exit (range 14) 7061 | -6/Lower Caves | Entered another Lower Caves area 7375 | -6/Lower Caves | Build established: Mutant 7406 | -6/Lower Caves | Spotted N6-UZ4(f) 7408 | -6/Lower Caves | Encountered a Master Thief 7408 | -6/Lower Caves | Spotted N9-NCV(f) 7408 | -6/Lower Caves | Spotted SA-5G7(f) 7409 | -6/Lower Caves | Encountered a Master Thief 7409 | -6/Lower Caves | Encountered a Master Thief 7409 | -6/Lower Caves | Bore Cannon stolen by Master Thief 7409 | -6/Lower Caves | Spotted F5-A1T(f) 7410 | -6/Lower Caves | Encountered a Master Thief 7416 | -6/Lower Caves | Coil Gun stolen by Master Thief 7421 | -6/Lower Caves | Learned Factory emergency access door positions 7424 | -6/Lower Caves | Discovered new exit (range 4) 7426 | -6/Lower Caves | Entered Data Miner 7426 | -6/Data Miner | Discovered new exit (range 6) 7437 | -6/Data Miner | Met Data Miner 7449 | -6/Data Miner | Learned location of Section 7 (-2) 7449 | -6/Data Miner | Acquired the access code to Warlord's prototype stash 7453 | -6/Data Miner | Received God Mode back door access code from Data Miner 7484 | -6/Data Miner | Entered Proximity Caves 7490 | -5/Proximity Caves | Spotted B-75 Beast 7492 | -5/Proximity Caves | Escorted by Enhanced Grunt 7520 | -5/Proximity Caves | Learned Factory stockpile data 7816 | -5/Proximity Caves | Core integrity fell below 20% 7828 | -5/Proximity Caves | Crushed by falling debris 7833 | -5/Proximity Caves | Crushed by falling debris 7863 | -5/Proximity Caves | Discovered new exit (range 7) 7868 | -5/Proximity Caves | Entered Factory 7868 | -5/Factory | Evolved 2 slots: Utility x1, Weapon x1 7959 | -5/Factory | Incoming investigation squad redirected 7984 | -5/Factory | Incoming investigation squad redirected 8005 | -5/Factory | Fabricated B-48 Gladiator? 8444 | -5/Factory | Lost 3 allies 8559 | -5/Factory | Core integrity fell below 50% 8583 | -5/Factory | Lost 5 parts (1p4w) 9139 | -5/Factory | Build established: Gunner 9193 | -5/Factory | Discovered new exit (range 15) 9232 | -5/Factory | Entered another Factory area 9232 | -4/Factory | Evolved 2 slots: Propulsion x2 9435 | -4/Factory | Lost 4 parts (2n2w) 9482 | -4/Factory | First assault squad dispatched 9627 | -4/Factory | Found Prototype Launcher 9627 | -4/Factory | Identified Com. Tesla Bomb Launcher 9639 | -4/Factory | Lost 12 parts (1n5u6w) 9661 | -4/Factory | Repaired Rnf. Fission Core 9797 | -4/Factory | Incoming assault squad redirected 9810 | -4/Factory | Core integrity fell below 50% 9838 | -4/Factory | Incoming investigation squad redirected 9838 | -4/Factory | Incoming investigation squad redirected 9849 | -4/Factory | Spotted B-86 Titan 9884 | -4/Factory | Lost 3 parts (2n1u) 9893 | -4/Factory | Fabricated H-66 Slayer? 9960 | -4/Factory | Discovered new exit (range 5) 9962 | -4/Factory | Identified exit to Upper Caves 9966 | -4/Factory | Entered Upper Caves 9981 | -4/Upper Caves | Lost 3 parts (2n1w) 10058 | -4/Upper Caves | Core integrity fell below 20% 10074 | -4/Upper Caves | System corruption reached 10% 10089 | -4/Upper Caves | Destroyed by S-27 Virus with Autogun Last Messages --------------- 09982_ Burning plasma bursts from the floor. 09992_ 8>PNT,EWC7U3FEIMJCC4K/U5FSC 09996_ Destroyed Adv. Trap Scanner. 10049_ System corrupted: Heat flow error (+107). 10057_ Nuclear Pulse Array destroyed. 10065_ System corrupted: FCS attempts to trigger Quantum Rifle. 10065_ System corrupted: Quantum Rifle misfires. 10066_ Quantum Rifle destroyed. 10071_ Rnf. Fission Core destroyed. 10073_ S-27 Virus destroyed. 10073_ Destroyed VTOL Module. 10082_ Slammed into S-27 Virus. 10082_ System Shield destroyed. 10082_ System corrupted by crushing effect (+5). 10083_ System corrupted: Heat flow error (+110). 10085_ Corrupted Autogun self-destruct mechanism malfunctions. 10086_ Acquired Corrupted Autogun. 10086_ Integrated Corrupted Autogun (+6). 10087_ Impulse Thruster destroyed. 10089_ VTOL Module self-destruct mechanism malfunctions. Map ----- +----------------------------------------------------+ | ?????????###?## ##### ##### # | | ????????## ## #???## | | ?? ### #????######## # | | ??? ########??????????# | | ???????# ##????????????????# ## | | ???????## ##????????????##??# ## | | ????????# ### #??????????## #??# ## | | ???????# ????# ##??????#### #??# ### | | ???????#??????## ###???## #??# ##?# | | ???????????????## #??## #???######??# | | ????????????????## #?## #######?????## | | ?????????????????## #### # #????#?## | | ??????????????????# ##?# ## #### | | ?????????????????## #### | | ????????????????## ###;# | | ????????????????# ### #### | | ????????????????# ## ####??????? | | ?????????????#### #????????????? ## | | ????????? #???????????????## | | ???????# ##????????????????? | | ???????# ##??????????????????? | | ?????? ## ## ##???????????????????? | | ??????? #?# ?## #????????????????????? | | ?????? ?# ??## #????????????????????? | | ??????? ? ???# % ##???????????????????? | | ??????? ? ???## @ % #??######???????????? | | ???????? ? #???## ==##?## ##??????????? | | ?????????? ##???## ### #??????????? | | ?????????? # ?????# s #####??????????? | | ???????????### ?????## s ##??????????????? | | ?????????????# ???????#### ##???????????????? | | ?????????????????????????## ##????????????????? | | ??????????????????????????# #?????????????????? | | ??????????????????????????# ##?????????????????? | | ??????????????????????????# ###??????????????????? | | ??????????????????????????###????????????????????? | | ?????????????????????????????????????????????????? | | ?????????????????????????????????????????????????? | | ?????????????????????????????????????????????????? | | ?????????????????????????????????????????????????? | | ?????????????????????????????????????????????????? | | ?????????????????????????????????????????????????? | | ?????????????????????????????????????????????????? | | ?????????????????????????????????????????????????? | | ?????????????????????????????????????????????????? | | ?????????????????????????????????????????????????? | | ?????????????????????????????????????????????????? | | ?????????????????????????????????????????????????? | | ?????????????????????????????????????????????????? | | ?????????????????????????????????????????????????? | +----------------------------------------------------+ Best States ------------- Heat Dissipation 75 Coolant Potential 160 Energy Generation 23 Energy Capacity 310 Matter Stores 300 Matter Capacity 300 Sight Range 20 Robot Scan Range 20 Terrain Scan Range 16 Terrain Scan Density 210 ECM Strength 1 Jamming Range 12 Power Amplification 30 Corruption Containment 8 Armor Coverage 450 Core Shielding 30 Utility Shielding 66 Evasion (%) 63 Targeting Accuracy 11 Melee Accuracy 32 Target Analysis 8 Energy Filtering 30 Kinecelleration 40 Offensive Hacking 10 Defensive Hacking 14 Item Schematics ----------------- Combat Drone Bay | -6/Data Miner | Free Lgt. Regenerative Plating | -6/Data Miner | Free Enh. Flexi-carbon Leg | -6/Data Miner | Free Prc. Matter Filter | -6/Data Miner | Free Ionic Axe | -6/Data Miner | Free Adv. Medium Treads | -6/Data Miner | Free Adv. Thermal Shield | -6/Data Miner | Free Railgun | -6/Data Miner | Free Field Propulsion Drive | -6/Data Miner | Free Imp. Remote Shield | -6/Data Miner | Free Hardcell Cannon | -6/Data Miner | Free Adv. Recalibrator | -6/Data Miner | Free Smartbomb Launcher | -5/Factory | Scanalyzed Rocket Array | -5/Factory | Scanalyzed Rnf. Fission Core | -5/Factory | Scanalyzed Med. Reflective Plating | -5/Factory | Extracted ECM Suite | -5/Factory | Extracted Imp. Arc Projector | -5/Factory | Extracted Matter Filter | -5/Factory | Extracted Reflective Plating | -5/Factory | Extracted Huge Storage Unit | -5/Factory | Extracted Power Maul | -5/Factory | Extracted Robot Schematics ------------------ M-22 Extractor | -6/Data Miner | Free A-15 Conveyor | -6/Data Miner | Free B-48 Gladiator | -6/Data Miner | Free H-66 Slayer | -6/Data Miner | Free R-10 Processor | -6/Data Miner | Free O-32 Director | -6/Data Miner | Free Fabricated ------------ Lyr. Medium Armor Plating | x1 | -7/Factory | Preloaded S-27 Virus | x4 | -7/Factory | Preloaded B-48 Gladiator | x3 | -5/Factory H-66 Slayer | x2 | -4/Factory Alien Tech Used ----------------- None Achievements -------------- None Challenges ------------ None Game ------ Seed ControlSkeletonSink Manual? 0 Play Time 01:12:04 Cumulative 701.5 hours Start 2024.03.09 @ 23:14:26 End 2024.03.10 @ 00:28:53 Sessions 1 Manual Loads 0 Difficulty Rogue Special Mode None Game No. 732 Rogue 457 Adventurer 123 Explorer 152 Win Type - Total 26 Types 20/0/4/1/0/0/0/1/0 Lore% 83 Gallery% 91 Achievement% 76 Wizard Run 0 Options --------- Layout 0 ASCII 1 Keyboard 1 Movement Numpad Keybinds 0 Fullscreen 2 Font 18/Terminus Map View 76x50 Zoom Use 1% Tactical HUD 1 Map Filters NONE Filters NONE Steam 1 RUN: 44af2f3c-a008-40e4-aa46-d238b8d9aff4